Cogmind - Beta 14 @@@ ROGUE MODE // 2024.08.29 @ 13:00:44 Player: Rzcen Result: Destroyed by as-34711 with Assembled Blade Performance ------------- Evolutions (0) 0 Regions Visited (4) 800 Robots Destroyed (21) 105 Value Destroyed (528) 528 Prototype IDs (27) 540 Alien Tech Used (0) 0 Bonus (-207) -207 TOTAL SCORE: 1766 Bonus ------- Friendly Fire -207 Cogmind --------- Core Integrity 0/250 Matter 200/300 Energy 81/250 System Corruption 0% Temperature Cool (20) Movement Core (1800) Ox35 Location -9/Mines Parts ------- > --- POWER (1) -------- Ion Engine > --- PROPULSION (2) --- (None) > --- UTILITY (2) ------ Huge Storage Unit Visual Processing Unit > --- WEAPON (2) ------- Firepult > --- INVENTORY (25) --- Ion Engine Light Nuclear Core Light Nuclear Core Improved Heat Sink Signal Interpreter Makeshift System Restoration Module High-powered Tractor Beam EM Pulse Gun Particle Gun Assault Rifle Assault Rifle High-powered Shotgun Makeshift Shrapnel Gun Assault Cannon Assault Cannon Heavy Mace Ripper Makeshift Sword Peak State ------------ > --- POWER ------------ Ion Engine > --- PROPULSION ------- Light Treads > --- UTILITY ---------- Huge Storage Unit Visual Processing Unit > --- WEAPON ----------- Firepult > --- INVENTORY -------- Ion Engine Light Nuclear Core Light Nuclear Core Improved Heat Sink Signal Interpreter Makeshift System Restoration Module High-powered Tractor Beam EM Pulse Gun Particle Gun Assault Rifle Assault Rifle High-powered Shotgun Makeshift Shrapnel Gun Assault Cannon Assault Cannon Heavy Mace Ripper Makeshift Sword [Rating: 29] Favorites ----------- Power Light Ion Engine Engine Light Ion Engine Propulsion Light Treads Treads Light Treads Utility Huge Storage Unit Storage Huge Storage Unit Processor Visual Processing Unit Weapon Assault Cannon Energy Gun Medium Laser Energy Cannon Firepult Ballistic Gun Assault Rifle Ballistic Cannon Assault Cannon Build | -11 -10 -10 -10 -9 ------- Run | Yrd Mat Min Exi Min Slots Evolved . | . . . . . Power . | . . . . . Propulsion . | . . . . . Utility . | . . . . . Weapon . | . . . . . Parts Attached 23 | 7 6 4 4 2 Power 4 | 2 1 . . 1 Engine 4 | 2 1 . . 1 Core . | . . . . . Reactor . | . . . . . Propulsion 3 | 2 1 . . . Treads 3 | 2 1 . . . Leg . | . . . . . Wheel . | . . . . . Hover . | . . . . . Flight . | . . . . . Utility 5 | 1 3 1 . . Device . | . . . . . Storage 4 | 1 3 . . . Processor 1 | . . 1 . . Hackware . | . . . . . Protection . | . . . . . Artifact . | . . . . . Weapon 11 | 2 1 3 4 1 Energy Gun 2 | 1 1 . . . Energy Cannon 1 | . . . . 1 Ballistic Gun 6 | 1 . 3 2 . Ballistic Cannon 2 | . . . 2 . Launcher . | . . . . . Special Weapon . | . . . . . Impact Weapon . | . . . . . Slashing Weapon . | . . . . . Piercing Weapon . | . . . . . Special Melee Weapon . | . . . . . Unidentified Prototypes . | . . . . . Parts Lost 6 | . 2 3 . 1 Power 2 | . 1 1 . . Propulsion 2 | . 1 . . 1 Utility . | . . . . . Weapon 2 | . . 2 . . Highest Loss Streak 2 | . 1 2 . 1 To Critical Strikes . | . . . . . Average Slot Usage (%) 69 | . 78 63 71 57 Engine 2 | . 12 . . 7 Treads 15 | . 22 14 14 7 Storage 14 | . 14 14 14 14 Processor 7 | . . 6 14 14 Energy Gun 5 | . 25 . . . Ballistic Gun 14 | . 2 26 8 . Ballistic Cannon 7 | . . . 19 . Peak Build Rating 29 | 6 8 11 17 29 Average Rating 10 | 4 6 8 14 24 On Entrance 8 | . 6 7 11 17 Naked Turns . | . . . . . Heaviest Build 107 | 14 88 85 90 107 Greatest Support 40 | 40 40 20 20 20 Greatest Overweight (x) 5 | . 4 4 4 5 Average Overweight (x) 3 | . 1 4 4 4 Largest Inventory Capacity 25 | 8 25 25 25 25 Average Capacity 24 | 6 21 25 25 25 Most Carried 20 | 5 7 16 20 20 Average Carried 13 | 1 3 14 18 18 Final Capacity 25 | 8 25 25 25 25 Final Carried 19 | 1 7 16 19 18 Class Distribution -------------------- 100% | Mutant Dominant Class ---------------- Mutant | -10/Materials Mutant | -10/Mines Mutant | -10/Exiles Mutant | -9/Mines Resources | -11 -10 -10 -10 -9 ----------- Run | Yrd Mat Min Exi Min Matter Collected 591 | 199 185 49 158 . Remotely . | . . . . . Salvage Created 802 | . 483 89 109 121 Parts 36 | . 25 10 1 . Haulers Intercepted 1 | . 1 . . . Recyclers Shooed . | . . . . . Parts Field Recycled . | . . . . . Retrieved Matter . | . . . . . Parts Self-Destructed . | . . . . . Prevented . | . . . . . Kills | -11 -10 -10 -10 -9 ------- Run | Yrd Mat Min Exi Min Combat Hostiles Destroyed 23 | . 9 6 2 6 Guns 14 | . 7 6 1 . Cannons 2 | . . . 1 1 AOE 5 | . . . . 5 Classes Destroyed 6 | . 3 1 1 1 Hauler 1 | . 1 . . . Watcher 2 | . 2 . . . Swarmer 6 | . . 6 . . Grunt 11 | . 9 . 1 1 Hunter 1 | . . . 1 . Assembled 6 | . . . . 6 Best Kill Streak 6 | . 3 3 1 6 Combat Bots Only 6 | . 2 3 1 6 Max Kills in Single Turn 7 | . 2 2 1 7 Gunslinging 1 | . 1 1 . . Exploded 5 | . . . . 5 Melee . | . . . . . Uniques/NPCs Destroyed . | . . . . . Combat | -11 -10 -10 -10 -9 -------- Run | Yrd Mat Min Exi Min Hostile Shots Fired 114 | . 51 47 . 16 Missed 25 | . 10 12 . 3 Damage Taken 1120 | . 542 275 . 303 Core 272 | . 51 52 . 169 Absorbed by Shields . | . . . . . Regen/Repaired (Parts) 90 | . 90 . . . Core Remaining (%) 100 | 100 . . . . Volleys Fired 72 | . 39 11 21 1 Largest 2 | . 2 2 2 1 Hottest 250 | . 115 115 88 250 Shots Fired 142 | . 78 21 42 1 Gun 105 | . 78 21 6 . Cannon 37 | . . . 36 1 Launcher . | . . . . . Special . | . . . . . Kinetic 71 | . 18 11 42 . Thermal 71 | . 60 10 . 1 Explosive . | . . . . . Electromagnetic . | . . . . . Robot Hit Streak 8 | . 8 4 8 2 Robot Miss Streak 4 | . 4 2 3 3 Penetration Max . | . . . . . Secondary Targets 3 | . 1 2 . . Max Gunslinging Chain 1 | . 1 1 . . Shots Hit Robots 101 | . 55 14 31 1 Core Hits 47 | . 20 6 10 11 Critical Kills . | . . . . . Critical Parts Destroyed . | . . . . . Critical Strikes 8 | . 5 1 2 . Burn 6 | . 5 1 . . Blast 2 | . . . 2 . Melee Attacks . | . . . . . Impact . | . . . . . Slashing . | . . . . . Piercing . | . . . . . Sneak Attacks . | . . . . . Combat Hostiles . | . . . . . Follow-up Attacks . | . . . . . Damage Inflicted 1868 | . 762 162 593 351 Guns 974 | . 757 162 55 . Cannons 574 | . . . 538 36 Explosions 315 | . . . . 315 Melee . | . . . . . Ramming 5 | . 5 . . . Kinetic 851 | . 187 71 593 . Thermal 1012 | . 570 91 . 351 Explosive . | . . . . . Electromagnetic . | . . . . . Impact . | . . . . . Slashing . | . . . . . Piercing . | . . . . . Highest Corruption . | . . . . . Average Corruption . | . . . . . Corruption Purged . | . . . . . Corruption Blocked . | . . . . . Overload Shots . | . . . . . Overflow Damage 15 | . . . 15 . Projectiles 15 | . . . 15 . Explosions . | . . . . . Melee . | . . . . . Knockbacks 5 | . . . 5 . Impact . | . . . . . Kinetic 5 | . . . 5 . Secondary . | . . . . . Self-Inflicted Damage 10 | . . . . 10 Shots 1 | . . . . 1 Rammed 1 | . 1 . . . Targets Rammed 1 | . 1 . . . Kicked . | . . . . . Crushed . | . . . . . Highest Temperature 300 | . 300 172 60 220 Average Temperature 65 | . 73 76 26 112 Received Heat Transfer 335 | . 315 . . 20 Siege Activations . | . . . . . Robots Corrupted . | . . . . . Combat Hostiles . | . . . . . Parts Fried . | . . . . . Impact Corruptions . | . . . . . Robots Melted 2 | . 2 . . . Combat Hostiles 2 | . 2 . . . Parts Melted 8 | . 6 1 . 1 Heat Transferred 4017 | . 1924 333 . 1760 Parts Sabotaged . | . . . . . Parts Stolen . | . . . . . Parts Stripped . | . . . . . Power Chain Reactions . | . . . . . Alert | -11 -10 -10 -10 -9 ------- Run | Yrd Mat Min Exi Min Peak Influence 178 | . 178 110 . 3 Initial . | . . . . . Average 22 | . 43 11 . 1 Maximum Alert Level . | . . . . . Low Security (%) 100 | 100 100 100 . 100 Level 1 . | . . . . . Level 2 . | . . . . . Level 3 . | . . . . . Level 4 . | . . . . . Level 5 . | . . . . . High Security . | . . . . . Max Security . | . . . . . Squads Dispatched 2 | . 1 1 . . Investigation 2 | . 1 1 . . Extermination . | . . . . . Reinforcement . | . . . . . Assault . | . . . . . Garrison . | . . . . . Intercept . | . . . . . Searches Triggered . | . . . . . Construction Impeded . | . . . . . Haulers Reinforced . | . . . . . Active Scanning Responses . | . . . . . Cargo Convoy Interrupts . | . . . . . Stealth | -11 -10 -10 -10 -9 --------- Run | Yrd Mat Min Exi Min Distress Signals 1 | . 1 . . . Communications Jammed . | . . . . . Distress Signals . | . . . . . Times Spotted 43 | . 23 4 . 16 Peak Tracking Total 13 | . 4 3 . 13 Tactical Retreats 1 | . 1 . . . Traps | -11 -10 -10 -10 -9 ------- Run | Yrd Mat Min Exi Min Traps Triggered 1 | . 1 . . . Indirectly . | . . . . . Trap Hack Attempts . | . . . . . Triggered . | . . . . . Disarmed . | . . . . . Reprogrammed . | . . . . . Reused . | . . . . . Traps Extracted . | . . . . . Installed . | . . . . . Triggered . | . . . . . Machines | -11 -10 -10 -10 -9 ---------- Run | Yrd Mat Min Exi Min Machines Disabled . | . . . . . Max in Single Turn . | . . . . . Machines Repaired . | . . . . . Machines Dismantled . | . . . . . Machines Sabotaged . | . . . . . Overloaded Fab Kills . | . . . . . Hacking | -11 -10 -10 -10 -9 --------- Run | Yrd Mat Min Exi Min Machines Accessed 12 | . 8 1 3 . Terminals 7 | . 7 . . . Fabricators . | . . . . . Repair Stations 1 | . 1 . . . Recycling Units . | . . . . . Scanalyzers . | . . . . . Garrison Access . | . . . . . Total Hacks 49 | . 22 1 26 . Successful 39 | . 12 1 26 . Failed 10 | . 10 . . . Catastrophic 3 | . 3 . . . Database Lockouts . | . . . . . Manual 7 | . 5 . 2 . Terminals 19 | . 19 . . . Fabricators . | . . . . . Repair Stations 3 | . 3 . . . Recycling Units . | . . . . . Scanalyzers . | . . . . . Garrison Access . | . . . . . Terminal Hacks 37 | . 10 1 26 . Record 25 | . . . 25 . Prototype ID Bank 2 | . 2 . . . Open Door 1 | . . 1 . . Emergency Access Points 2 | . 2 . . . Recycling Unit Index 1 | . 1 . . . Dispatch Records 1 | . 1 . . . Transport Status 1 | . 1 . . . Hauler Manifests 1 | . 1 . . . Registered Components 1 | . 1 . . . Zone Layout 1 | . 1 . . . Derelict Proto ID Bank 1 | . . . 1 . Fabricator Hacks . | . . . . . Repair Station Hacks 2 | . 2 . . . Scan Component 1 | . 1 . . . Repair 1 | . 1 . . . Recycling Unit Hacks . | . . . . . Scanalyzer . | . . . . . Garrison Access Hacks . | . . . . . Unauthorized Hacks . | . . . . . Terminals . | . . . . . Fabricators . | . . . . . Repair Stations . | . . . . . Recycling Units . | . . . . . Scanalyzers . | . . . . . Garrison Access . | . . . . . Data Cores Recovered . | . . . . . Used . | . . . . . Hacking Detections 7 | . 7 . . . Full Trace Events . | . . . . . Feedback Events . | . . . . . Feedback Blocked . | . . . . . Robot Schematics Acquired . | . . . . . Robots Built . | . . . . . Authchips . | . . . . . Time . | . . . . . Total Robot Build Rating . | . . . . . Part Schematics Acquired . | . . . . . Parts Built . | . . . . . Authchips . | . . . . . Time . | . . . . . Total Part Build Rating . | . . . . . Parts Repaired 1 | . 1 . . . Time 26 | . 26 . . . Parts Recycled . | . . . . . Recycled Matter . | . . . . . Retrieved Matter . | . . . . . Retrieved Components . | . . . . . Parts Scanalyzed . | . . . . . Part Schematics Acquired . | . . . . . Parts Damaged . | . . . . . Bothacking | -11 -10 -10 -10 -9 ------------ Run | Yrd Mat Min Exi Min Used RIF Installer . | . . . . . Robots Hacked . | . . . . . Non-combat . | . . . . . Combat . | . . . . . Robot Hacks Applied . | . . . . . Relay Couplers Released . | . . . . . Fabnet Peak Effective % . | . . . . . Robots Rewired . | . . . . . Allies Hacked . | . . . . . Hacks Repelled . | . . . . . Allies | -11 -10 -10 -10 -9 -------- Run | Yrd Mat Min Exi Min Total Allies 3 | . . 3 . . Largest Group 3 | . . 3 3 2 Highest-Rated Group 40 | . . 40 40 24 Highest-Rated Ally 16 | . . 16 16 16 Total Orders . | . . . . . Ally Attacks 5 | . . . . 5 Total Damage 11 | . . . . 11 Kills . | . . . . . Allies Corrupted . | . . . . . Allies Melted . | . . . . . Intel | -11 -10 -10 -10 -9 ------- Run | Yrd Mat Min Exi Min Robot Analysis Total . | . . . . . Derelict Logs Recovered 2 | . . 2 . . Drone Launches . | . . . . . Drone Recoveries . | . . . . . Exploration | -11 -10 -10 -10 -9 ------------- Run | Yrd Mat Min Exi Min Turns Passed 7620 | 70 1653 3034 2842 21 Spaces Moved 1736 | 48 488 621 576 3 Core 18 | 18 . . . . Treads 1718 | 30 488 621 576 3 Legs . | . . . . . Wheels . | . . . . . Hover . | . . . . . Flight . | . . . . . Fastest Speed 50 | 50 160 480 480 480 Average Speed 419 | 118 299 480 480 533 Slowest Speed 560 | 160 480 480 480 560 Overloaded Moves . | . . . . . Propulsion Burnouts . | . . . . . Robots Hopped . | . . . . . Cave-ins Triggered . | . . . . . Exploration Rate (%) 55 | 3 79 98 91 4 Regions Visited 4 Branch Regions 3 Pre-discovered Areas 3 | . . 2 1 . Known Exits Taken . | . . . . . Unknown Exits Taken 4 | 1 1 1 1 . Scrap Searched 2 | . . 2 . . Spaces Dug . | . . . . . Terrain Destroyed 6 | . . . 3 3 Melee . | . . . . . Projectile 3 | . . . 3 . AOE 3 | . . . . 3 Terrain Rammed . | . . . . . Walls Destroyed . | . . . . . Machines Disabled . | . . . . . Actions | -11 -10 -10 -10 -9 --------- Run | Yrd Mat Min Exi Min Total 1943 | 60 604 657 614 8 Wait 72 | . 57 10 5 . Move 1732 | 47 487 620 575 3 Hop . | . . . . . Pick Up 34 | 6 11 12 5 . Fast Attach 1 | 1 . . . . Attach 15 | 5 5 3 . 2 Detach 2 | . . . . 2 Swap 7 | 1 1 1 4 . Drop 6 | . 3 . 3 . Fire 72 | . 39 11 21 1 Melee . | . . . . . Ram . | . . . . . Kick . | . . . . . Crush 1 | . 1 . . . Escape Stasis . | . . . . . Rewire 1 | . . . 1 . Trap . | . . . . . Miscellaneous . | . . . . . Route ------- -11/Scrapyard -10/Materials (discovered 2 exits: [*Mat] / *Min) -10/Mines (discovered 3 exits: [*Mat x2] / *Exi) -10/Exiles -9/Mines History --------- Turn | Location | Event 2 | -11/Scrapyard | Discovered new exit (range 16) 71 | -11/Scrapyard | Entered Materials 315 | -10/Materials | Build established: Mutant 392 | -10/Materials | Repaired Lgt. Treads 461 | -10/Materials | Discovered new exit (range 10) 669 | -10/Materials | Discovered new exit (range 11) 1724 | -10/Materials | Entered Mines 2025 | -10/Mines | Discovered new exit (range 8) 2160 | -10/Mines | Met a Derelict shopkeep closing up shop 2410 | -10/Mines | Deemed a non-threat by the Exiles lab entrance 2410 | -10/Mines | Discovered new exit (range 5) 3127 | -10/Mines | Discovered new exit (range 8) 3132 | -10/Mines | Learned location of Zion (-7) 3542 | -10/Mines | Assisted by bots powering up and referring to "LRC-V3" 3801 | -10/Mines | A weapon hastily lodged in a ceiling crevice suddenly fell to the ground 4758 | -10/Mines | Entered Exiles 4758 | -10/Exiles | Found Exiles lab destroyed 4758 | -10/Exiles | Accompanied by 3 allies 6067 | -10/Exiles | Opened EX-Vault 6091 | -10/Exiles | Found Firepult 7562 | -10/Exiles | Discovered new exit (range 10) 7600 | -10/Exiles | Entered Mines 7600 | -9/Mines | Accompanied by 3 allies 7601 | -9/Mines | Assembled infested the area 7606 | -9/Mines | Assisted by a Guerilla fighting off Assembled 7616 | -9/Mines | Core integrity fell below 50% 7621 | -9/Mines | Destroyed by as-34711 with Assembled Blade Last Messages --------------- ahead or try to find another way!" 07606_ as-20036 suffers critical hit (Destroy). 07606_ as-20036 destroyed. 07607_ Trooper 1b destroyed. 07607_ Aluminum Leg melted. 07607_ Mercenary 1a destroyed. 07607_ as-89415 destroyed. 07607_ as-46538 destroyed. 07607_ as-69134 destroyed. 07607_ as-73652 destroyed. 07607_ as-81627 destroyed. [Achievement: Quick And Dirty] 07610_ HV Slug penetrates Wall. 07610_ HV Slug penetrates Earth. 07612_ as-11501 destroyed. 07614_ HV Slug penetrates as-38870. 07614_ as-38870 suffers critical hit (Destroy). 07614_ as-38870 destroyed. 07616_ RY-ESX(h) destroyed. 07618_ Lgt. Treads destroyed. Map ----- +----------------------------------------------------+ | ?????????????????????????????????????????? | | ?????????????????????????????????????????? | | ?????????????????????????????????????????? | | ?????????????????????????????????????????? | | ?????????????????????????????????????????? | | ?????????????????????????????????????????? | | ?????????????????????????????????????????? | | ?????????????????????????????????????????? | | ?????????????????????????????????????????? | | ?????????????????????????????????????????? | | ?????????????????????????????????????????? | | ?????????????????????????????????????????? | | ??????????????????????????????##?????????? | | ?????????????????????????????? #?????????? | | ?????????????????????????????? #?????????? | | ??????????????????????????????%##????????? | | ????????????????????????????? "#????????? | | ?????????????????????????????% ##???????? | | ?????????????????????????????% # #???????? | | ????????????????????????????#%= #???????? | | ??????????????????????????## ;#????????? | | ?????????????????????????? %% #?????????? | | ??????????????????????????#%%%a#?????????? | | ?????????????????????????##=aa #?????????? | | ????????????????????????##a a #?????????? | | ????????????????????????#@a #?????????? | | ?????????????????????# aa #;#????????? | | ??????????????????# ###??????????? | | ??????????????????# ##????????????? | | ??????????????????# # ##?????????????? | | ??????????????????# ?######??????????????? | | ??????????????????#??????????????????????? | | ?????????????????????????????????????????? | | ?????????????????????????????????????????? | | ?????????????????????????????????????????? | | ?????????????????????????????????????????? | | ?????????????????????????????????????????? | | ?????????????????????????????????????????? | | ?????????????????????????????????????????? | | ?????????????????????????????????????????? | | ?????????????????????????????????????????? | | ?????????????????????????????????????????? | | ?????????????????????????????????????????? | | ?????????????????????????????????????????? | | ?????????????????????????????????????????? | | ?????????????????????????????????????????? | | ?????????????????????????????????????????? | | ?????????????????????????????????????????? | | ?????????????????????????????????????????? | | ?????????????????????????????????????????? | +----------------------------------------------------+ Best States ------------- Heat Dissipation 25 Energy Generation 10 Energy Capacity 250 Matter Stores 300 Matter Capacity 300 Sight Range 18 Terrain Scan Density 10 Evasion (%) 50 Recoil Reduction 2 Item Schematics ----------------- None Robot Schematics ------------------ None Fabricated ------------ Nothing Alien Tech Used ----------------- None Achievements -------------- Quick And Dirty Challenges ------------ None Game ------ Seed ReflectiveRestorationLattice Manual? 0 Play Time 00:23:07 Cumulative 27.6 hours Start 2024.08.29 @ 12:38:40 End 2024.08.29 @ 13:00:44 Sessions 1 Manual Loads 0 Difficulty Rogue Special Mode None Game No. 26 Rogue 22 Adventurer 4 Explorer 0 Win Type - Total 0 Types 0/0/0/0/0/0/0/0/0 Lore% 8 Gallery% 20 Achievement% 20 Wizard Run 0 Options --------- Layout 1 ASCII 0 Keyboard 0 Movement Mouse Keybinds 0 Fullscreen 1 Font 32/SmallcapsGlow Map View 50x35 Zoom Use 0% Tactical HUD 1 Map Filters NONE Filters NONE Steam 1 RUN: a8396a0b-d565-4116-aa01-10bee1cde855